[Event "Titled Tuesday Blitz June 8 2021"]
[White "Concio, Michael Jr."]
[Black "Pap, Gyula"]
[WhiteFideId "5217873"]
[BlackFideId "725323"]
[WhiteElo "1896"]
[BlackElo "2562"]
[Result "1-0"]
[Round "05"]
[TimeControl "180+1"]
[Date "2021.06.08"]
[WhiteClock "0:00:03"]
[BlackClock "0:00:03"]

1. Nf3 {[%clk 0:02:58]}  Nf6 {[%clk 0:02:59]} 2. g3 {[%clk 0:02:58]}  g6 {[%clk 0:02:59]} 3. Bg2 {[%clk 0:02:59]}  Bg7 {[%clk 0:02:59]} 4. O-O {[%clk 0:02:59]}  O-O {[%clk 0:03:00]} 5. c4 {[%clk 0:02:59]}  e6 {[%clk 0:02:56]} 6. c5 {[%clk 0:02:54]}  b6 {[%clk 0:02:47]} 7. d4 {[%clk 0:02:46]}  Bb7 {[%clk 0:02:42]} 8. Nc3 {[%clk 0:02:41]}  d6 {[%clk 0:02:35]} 9. cxd6 {[%clk 0:02:36]}  cxd6 {[%clk 0:02:35]} 10. b3 {[%clk 0:02:25]}  a6 {[%clk 0:02:20]} 11. Ba3 {[%clk 0:02:14]}  b5 {[%clk 0:02:19]} 12. Rc1 {[%clk 0:02:10]}  Qb6 {[%clk 0:02:13]} 13. Qd2 {[%clk 0:02:03]}  Nbd7 {[%clk 0:02:05]} 14. Bb2 {[%clk 0:01:50]}  h6 {[%clk 0:01:47]} 15. Rfd1 {[%clk 0:01:49]}  Ne4 {[%clk 0:01:45]} 16. Nxe4 {[%clk 0:01:43]}  Bxe4 {[%clk 0:01:46]} 17. Ne5 {[%clk 0:01:27]}  Nf6 {[%clk 0:01:27]} 18. Nd7 {[%clk 0:01:05]}  Nxd7 {[%clk 0:01:28]} 19. Bxe4 {[%clk 0:01:05]}  Rac8 {[%clk 0:01:11]} 20. e3 {[%clk 0:01:03]}  Rfd8 {[%clk 0:00:58]} 21. Rxc8 {[%clk 0:01:02]}  Rxc8 {[%clk 0:00:58]} 22. Rc1 {[%clk 0:01:03]}  Qb8 {[%clk 0:00:52]} 23. Rc2 {[%clk 0:00:53]}  Rxc2 {[%clk 0:00:39]} 24. Qxc2 {[%clk 0:00:53]}  d5 {[%clk 0:00:38]} 25. Bd3 {[%clk 0:00:49]}  Qb7 {[%clk 0:00:36]} 26. a4 {[%clk 0:00:36]}  Bf6 {[%clk 0:00:21]} 27. axb5 {[%clk 0:00:36]}  axb5 {[%clk 0:00:21]} 28. Ba3 {[%clk 0:00:31]}  b4 {[%clk 0:00:20]} 29. Bc1 {[%clk 0:00:32]}  Kg7 {[%clk 0:00:20]} 30. Bd2 {[%clk 0:00:31]}  Be7 {[%clk 0:00:20]} 31. Qa2 {[%clk 0:00:32]}  Nf6 {[%clk 0:00:20]} 32. f3 {[%clk 0:00:30]}  h5 {[%clk 0:00:19]} 33. Qa5 {[%clk 0:00:22]}  Qb8 {[%clk 0:00:18]} 34. Kf2 {[%clk 0:00:20]}  h4 {[%clk 0:00:18]} 35. Qb5 {[%clk 0:00:18]}  hxg3+ {[%clk 0:00:18]} 36. hxg3 {[%clk 0:00:19]}  Qc7 {[%clk 0:00:17]} 37. Bxb4 {[%clk 0:00:17]}  Bxb4 {[%clk 0:00:17]} 38. Qxb4 {[%clk 0:00:18]}  Qc1 {[%clk 0:00:18]} 39. g4 {[%clk 0:00:11]}  Qh1 {[%clk 0:00:14]} 40. Be2 {[%clk 0:00:09]}  Qh2+ {[%clk 0:00:10]} 41. Ke1 {[%clk 0:00:09]}  Nh7 {[%clk 0:00:09]} 42. Qe7 {[%clk 0:00:08]}  Qb8 {[%clk 0:00:04]} 43. b4 {[%clk 0:00:08]}  Nf6 {[%clk 0:00:04]} 44. b5 {[%clk 0:00:08]}  Qa8 {[%clk 0:00:05]} 45. b6 {[%clk 0:00:06]}  Qa5+ {[%clk 0:00:05]} 46. Kf2 {[%clk 0:00:05]}  Qxb6 {[%clk 0:00:06]} 47. g5 {[%clk 0:00:04]}  Ng8 {[%clk 0:00:05]} 48. Qd7 {[%clk 0:00:03]}  Qb8 {[%clk 0:00:06]} 49. f4 {[%clk 0:00:04]}  Qb2 {[%clk 0:00:05]} 50. Qa7 {[%clk 0:00:03]}  Qc2 {[%clk 0:00:04]} 51. Qb7 {[%clk 0:00:03]}  Qc1 {[%clk 0:00:04]} 52. Bg4 {[%clk 0:00:03]}  Qd2+ {[%clk 0:00:03]} 53. Be2 {[%clk 0:00:04]}  Qc1 {[%clk 0:00:02]} 54. Qb8 {[%clk 0:00:03]}  Qc2 {[%clk 0:00:01]} 55. Qe5+ {[%clk 0:00:04]}  Kf8 {[%clk 0:00:02]} 56. Qh8 {[%clk 0:00:03]}  Qc7 {[%clk 0:00:01]} 57. Bd3 {[%clk 0:00:03]}  Qd6 {[%clk 0:00:02]} 58. Qh1 {[%clk 0:00:02]}  Qa3 {[%clk 0:00:02]} 59. Qb1 {[%clk 0:00:01]}  Qe7 {[%clk 0:00:01]} 60. Be2 {[%clk 0:00:02]}  Kg7 {[%clk 0:00:02]} 61. Qb5 {[%clk 0:00:02]}  Qd6 {[%clk 0:00:02]} 62. Qa6 {[%clk 0:00:03]}  Ne7 {[%clk 0:00:03]} 63. Qxd6 {[%clk 0:00:03]} 1-0


[Site "https://www.chess.com"]

[Event "Titled Tuesday Blitz June 8 2021"]
[White "Dang, Hoang Son"]
[Black "Martin Carmona, Gaston Manuel"]
[WhiteFideId "12402435"]
[BlackFideId "22284567"]
[WhiteElo "2248"]
[BlackElo "2161"]
[Result "1-0"]
[Round "05"]
[TimeControl "180+1"]
[Date "2021.06.08"]
[WhiteClock "0:01:07"]
[BlackClock "0:00:07"]

1. d4 {[%clk 0:03:00]}  Nf6 {[%clk 0:02:58]} 2. c4 {[%clk 0:03:00]}  c5 {[%clk 0:02:53]} 3. d5 {[%clk 0:03:00]}  b5 {[%clk 0:02:54]} 4. Nc3 {[%clk 0:03:00]}  bxc4 {[%clk 0:02:36]} 5. e4 {[%clk 0:02:59]}  d6 {[%clk 0:02:35]} 6. Nf3 {[%clk 0:02:58]}  g6 {[%clk 0:02:35]} 7. e5 {[%clk 0:02:58]}  dxe5 {[%clk 0:02:34]} 8. Nxe5 {[%clk 0:02:59]}  Bg7 {[%clk 0:02:32]} 9. Qa4+ {[%clk 0:02:57]}  Bd7 {[%clk 0:02:30]} 10. Nxd7 {[%clk 0:02:48]}  Nbxd7 {[%clk 0:02:18]} 11. Qxc4 {[%clk 0:02:39]}  O-O {[%clk 0:02:18]} 12. Be2 {[%clk 0:02:36]}  Rc8 {[%clk 0:02:11]} 13. Bf3 {[%clk 0:02:31]}  Ne5 {[%clk 0:02:09]} 14. Qe2 {[%clk 0:02:28]}  Nxf3+ {[%clk 0:02:08]} 15. Qxf3 {[%clk 0:02:28]}  e6 {[%clk 0:02:04]} 16. dxe6 {[%clk 0:02:26]}  Re8 {[%clk 0:02:03]} 17. O-O {[%clk 0:02:26]}  Rxe6 {[%clk 0:02:03]} 18. Bg5 {[%clk 0:02:26]}  Qb6 {[%clk 0:02:01]} 19. Bxf6 {[%clk 0:02:22]}  Bxf6 {[%clk 0:01:42]} 20. Rab1 {[%clk 0:02:17]}  Bxc3 {[%clk 0:01:35]} 21. Qxc3 {[%clk 0:02:07]}  Rce8 {[%clk 0:01:28]} 22. h4 {[%clk 0:02:03]}  h5 {[%clk 0:01:27]} 23. b3 {[%clk 0:01:56]}  Re4 {[%clk 0:01:26]} 24. g3 {[%clk 0:01:56]}  Qa6 {[%clk 0:01:21]} 25. Rb2 {[%clk 0:01:45]}  Re2 {[%clk 0:01:19]} 26. Rxe2 {[%clk 0:01:38]}  Rxe2 {[%clk 0:01:20]} 27. a4 {[%clk 0:01:38]}  c4 {[%clk 0:01:14]} 28. Rd1 {[%clk 0:01:26]}  Qb6 {[%clk 0:01:05]} 29. Qf3 {[%clk 0:01:22]}  Ra2 {[%clk 0:00:42]} 30. Rd7 {[%clk 0:01:17]}  Qe6 {[%clk 0:00:36]} 31. Rd8+ {[%clk 0:01:17]}  Kh7 {[%clk 0:00:36]} 32. Qc3 {[%clk 0:01:15]}  f6 {[%clk 0:00:27]} 33. Qd4 {[%clk 0:01:09]}  Qb6 {[%clk 0:00:07]} 34. Qd7+ {[%clk 0:01:07]} 1-0


[Site "https://www.chess.com"]

[Event "Titled Tuesday Blitz June 8 2021"]
[White "Wagner, Dinara"]
[Black "Quintiliano Pinto, Renato R."]
[WhiteFideId "24157570"]
[BlackFideId "2117568"]
[WhiteElo "2260"]
[BlackElo "2439"]
[Result "1-0"]
[Round "05"]
[TimeControl "180+1"]
[Date "2021.06.08"]
[WhiteClock "0:00:14"]
[BlackClock "0:00:10"]

1. d4 {[%clk 0:03:00]}  Nf6 {[%clk 0:02:59]} 2. c4 {[%clk 0:03:00]}  e6 {[%clk 0:02:59]} 3. Nf3 {[%clk 0:02:58]}  b6 {[%clk 0:02:59]} 4. g3 {[%clk 0:02:58]}  Bb7 {[%clk 0:02:58]} 5. Bg2 {[%clk 0:02:58]}  Bb4+ {[%clk 0:02:58]} 6. Bd2 {[%clk 0:02:58]}  a5 {[%clk 0:02:58]} 7. a3 {[%clk 0:02:57]}  Bxd2+ {[%clk 0:02:56]} 8. Qxd2 {[%clk 0:02:57]}  O-O {[%clk 0:02:55]} 9. O-O {[%clk 0:02:57]}  a4 {[%clk 0:02:49]} 10. Re1 {[%clk 0:02:43]}  Qc8 {[%clk 0:02:39]} 11. Qc2 {[%clk 0:02:40]}  Be4 {[%clk 0:02:38]} 12. Qd2 {[%clk 0:02:39]}  Bb7 {[%clk 0:01:53]} 13. Qc2 {[%clk 0:02:39]}  c5 {[%clk 0:01:24]} 14. dxc5 {[%clk 0:02:18]}  bxc5 {[%clk 0:01:22]} 15. Nc3 {[%clk 0:02:17]}  Bc6 {[%clk 0:01:13]} 16. e4 {[%clk 0:02:15]}  Qb7 {[%clk 0:01:08]} 17. h3 {[%clk 0:01:52]}  Rd8 {[%clk 0:00:30]} 18. Re3 {[%clk 0:01:50]}  d6 {[%clk 0:00:25]} 19. Rd1 {[%clk 0:01:48]}  Na6 {[%clk 0:00:17]} 20. Qe2 {[%clk 0:01:20]}  Nc7 {[%clk 0:00:17]} 21. Rd2 {[%clk 0:01:11]}  Nfe8 {[%clk 0:00:17]} 22. Qd1 {[%clk 0:01:07]}  e5 {[%clk 0:00:17]} 23. Nxe5 {[%clk 0:00:59]}  Rab8 {[%clk 0:00:14]} 24. Nxc6 {[%clk 0:00:56]}  Qxc6 {[%clk 0:00:15]} 25. e5 {[%clk 0:00:56]}  Qa6 {[%clk 0:00:15]} 26. exd6 {[%clk 0:00:54]}  Rxd6 {[%clk 0:00:16]} 27. Nd5 {[%clk 0:00:40]}  Nxd5 {[%clk 0:00:12]} 28. Bxd5 {[%clk 0:00:40]}  Rdb6 {[%clk 0:00:12]} 29. Re7 {[%clk 0:00:27]}  Nd6 {[%clk 0:00:12]} 30. Qf3 {[%clk 0:00:26]}  Kh8 {[%clk 0:00:11]} 31. Bxf7 {[%clk 0:00:22]}  Nxc4 {[%clk 0:00:11]} 32. Rde2 {[%clk 0:00:15]}  Nd6 {[%clk 0:00:11]} 33. Be8 {[%clk 0:00:13]}  h6 {[%clk 0:00:10]} 34. Qf8+ {[%clk 0:00:13]}  Kh7 {[%clk 0:00:10]} 35. Qxg7# {[%clk 0:00:14]} 1-0


[Site "https://www.chess.com"]

[Event "Titled Tuesday Blitz June 8 2021"]
[White "Dowgird, Filip"]
[Black "Jones, Gawain C B"]
[WhiteFideId "1121235"]
[BlackFideId "409561"]
[WhiteElo "2209"]
[BlackElo "2657"]
[Result "1/2-1/2"]
[Round "05"]
[TimeControl "180+1"]
[Date "2021.06.08"]
[WhiteClock "0:00:03"]
[BlackClock "0:00:05"]

1. d4 {[%clk 0:02:56]}  Nf6 {[%clk 0:02:59]} 2. Bg5 {[%clk 0:02:54]}  d5 {[%clk 0:02:59]} 3. Bxf6 {[%clk 0:02:53]}  gxf6 {[%clk 0:03:00]} 4. e3 {[%clk 0:02:53]}  c5 {[%clk 0:03:00]} 5. dxc5 {[%clk 0:02:52]}  Nc6 {[%clk 0:02:57]} 6. c4 {[%clk 0:02:50]}  d4 {[%clk 0:02:56]} 7. exd4 {[%clk 0:02:42]}  Nxd4 {[%clk 0:02:55]} 8. Nf3 {[%clk 0:02:19]}  Nxf3+ {[%clk 0:02:43]} 9. Qxf3 {[%clk 0:02:18]}  Qa5+ {[%clk 0:02:31]} 10. Nc3 {[%clk 0:02:17]}  Qxc5 {[%clk 0:02:30]} 11. Bd3 {[%clk 0:02:04]}  Qe5+ {[%clk 0:02:28]} 12. Kd2 {[%clk 0:01:43]}  Bh6+ {[%clk 0:02:05]} 13. Kc2 {[%clk 0:01:42]}  Qf4 {[%clk 0:01:51]} 14. Qxf4 {[%clk 0:01:38]}  Bxf4 {[%clk 0:01:51]} 15. g3 {[%clk 0:01:38]}  Be5 {[%clk 0:01:46]} 16. Rhe1 {[%clk 0:01:37]}  Be6 {[%clk 0:01:44]} 17. f4 {[%clk 0:01:37]}  Bd4 {[%clk 0:01:24]} 18. Re4 {[%clk 0:01:31]}  Bxc3 {[%clk 0:01:18]} 19. Kxc3 {[%clk 0:01:30]}  Bf5 {[%clk 0:01:18]} 20. Re3 {[%clk 0:01:29]}  Bxd3 {[%clk 0:01:19]} 21. Rxd3 {[%clk 0:01:30]}  Rd8 {[%clk 0:01:00]} 22. Rad1 {[%clk 0:01:29]}  Rxd3+ {[%clk 0:00:59]} 23. Rxd3 {[%clk 0:01:30]}  h5 {[%clk 0:00:59]} 24. c5 {[%clk 0:01:09]}  h4 {[%clk 0:00:58]} 25. b4 {[%clk 0:01:09]}  hxg3 {[%clk 0:00:57]} 26. hxg3 {[%clk 0:01:09]}  e5 {[%clk 0:00:46]} 27. Kc4 {[%clk 0:01:02]}  Ke7 {[%clk 0:00:46]} 28. a4 {[%clk 0:00:56]}  Rh1 {[%clk 0:00:41]} 29. Kd5 {[%clk 0:00:44]}  Ra1 {[%clk 0:00:34]} 30. a5 {[%clk 0:00:34]}  Rb1 {[%clk 0:00:29]} 31. a6 {[%clk 0:00:28]}  Rxb4 {[%clk 0:00:22]} 32. axb7 {[%clk 0:00:27]}  Rxb7 {[%clk 0:00:23]} 33. Kc6 {[%clk 0:00:27]}  Rb4 {[%clk 0:00:21]} 34. Rd7+ {[%clk 0:00:17]}  Ke6 {[%clk 0:00:21]} 35. Rxa7 {[%clk 0:00:16]}  exf4 {[%clk 0:00:13]} 36. gxf4 {[%clk 0:00:16]}  Rxf4 {[%clk 0:00:14]} 37. Ra1 {[%clk 0:00:14]}  Re4 {[%clk 0:00:08]} 38. Kc7 {[%clk 0:00:12]}  f5 {[%clk 0:00:09]} 39. c6 {[%clk 0:00:11]}  f4 {[%clk 0:00:09]} 40. Kd8 {[%clk 0:00:10]}  Rd4+ {[%clk 0:00:09]} 41. Kc8 {[%clk 0:00:09]}  Ke5 {[%clk 0:00:05]} 42. c7 {[%clk 0:00:07]}  f3 {[%clk 0:00:04]} 43. Kb7 {[%clk 0:00:07]}  Rb4+ {[%clk 0:00:04]} 44. Ka7 {[%clk 0:00:05]}  Rc4 {[%clk 0:00:04]} 45. Kb7 {[%clk 0:00:05]}  Rb4+ {[%clk 0:00:04]} 46. Ka7 {[%clk 0:00:06]}  Rc4 {[%clk 0:00:04]} 47. Kb7 {[%clk 0:00:06]}  Ke4 {[%clk 0:00:04]} 48. Ra6 {[%clk 0:00:03]}  f2 {[%clk 0:00:02]} 49. Rf6 {[%clk 0:00:02]}  Rb4+ {[%clk 0:00:03]} 50. Ka7 {[%clk 0:00:02]}  Rc4 {[%clk 0:00:03]} 51. Kb7 {[%clk 0:00:02]}  Rb4+ {[%clk 0:00:03]} 52. Ka7 {[%clk 0:00:03]}  Ra4+ {[%clk 0:00:04]} 53. Kb7 {[%clk 0:00:03]}  Rb4+ {[%clk 0:00:05]} 1/2-1/2


[Site "https://www.chess.com"]

[Event "Titled Tuesday Blitz June 8 2021"]
[White "Drygalov, Sergey"]
[Black "Kollars, Dmitrij"]
[WhiteFideId "24171743"]
[BlackFideId "12909572"]
[WhiteElo "2514"]
[BlackElo "2576"]
[Result "1-0"]
[Round "05"]
[TimeControl "180+1"]
[Date "2021.06.08"]
[WhiteClock "0:00:43"]
[BlackClock "0:00:07"]

1. d4 {[%clk 0:03:00]}  d5 {[%clk 0:02:55]} 2. c4 {[%clk 0:03:01]}  c6 {[%clk 0:02:55]} 3. Nf3 {[%clk 0:03:01]}  Nf6 {[%clk 0:02:55]} 4. Nc3 {[%clk 0:03:02]}  e6 {[%clk 0:02:55]} 5. Bg5 {[%clk 0:02:57]}  h6 {[%clk 0:02:55]} 6. Bh4 {[%clk 0:02:57]}  g5 {[%clk 0:02:51]} 7. Bg3 {[%clk 0:02:56]}  dxc4 {[%clk 0:02:51]} 8. e3 {[%clk 0:02:55]}  b5 {[%clk 0:02:49]} 9. h4 {[%clk 0:02:55]}  g4 {[%clk 0:02:41]} 10. Ne5 {[%clk 0:02:55]}  Rg8 {[%clk 0:02:15]} 11. Be2 {[%clk 0:02:54]}  Nbd7 {[%clk 0:02:11]} 12. Nxg4 {[%clk 0:02:47]}  Nxg4 {[%clk 0:01:57]} 13. Bxg4 {[%clk 0:02:47]}  Bb7 {[%clk 0:01:58]} 14. Bf3 {[%clk 0:02:36]}  Qb6 {[%clk 0:01:48]} 15. a4 {[%clk 0:02:34]}  a6 {[%clk 0:01:44]} 16. O-O {[%clk 0:02:32]}  O-O-O {[%clk 0:01:39]} 17. b3 {[%clk 0:02:28]}  b4 {[%clk 0:01:29]} 18. a5 {[%clk 0:02:28]}  Qa7 {[%clk 0:01:28]} 19. Na4 {[%clk 0:02:20]}  c3 {[%clk 0:01:28]} 20. Qe2 {[%clk 0:02:06]}  c5 {[%clk 0:01:12]} 21. Rfd1 {[%clk 0:01:53]}  Bxf3 {[%clk 0:00:55]} 22. Qxf3 {[%clk 0:01:51]}  Qb7 {[%clk 0:00:55]} 23. Qxf7 {[%clk 0:01:49]}  Bd6 {[%clk 0:00:55]} 24. dxc5 {[%clk 0:01:06]}  Bxg3 {[%clk 0:00:55]} 25. fxg3 {[%clk 0:01:05]}  Rxg3 {[%clk 0:00:55]} 26. Nb6+ {[%clk 0:01:05]}  Kb8 {[%clk 0:00:42]} 27. Qf4+ {[%clk 0:01:04]}  Qc7 {[%clk 0:00:37]} 28. Nxd7+ {[%clk 0:01:03]}  Kb7 {[%clk 0:00:35]} 29. c6+ {[%clk 0:01:01]}  Qxc6 {[%clk 0:00:19]} 30. Qxg3 {[%clk 0:00:49]}  Rxd7 {[%clk 0:00:19]} 31. Rxd7+ {[%clk 0:00:48]}  Qxd7 {[%clk 0:00:20]} 32. Qf4 {[%clk 0:00:47]}  Qb5 {[%clk 0:00:11]} 33. Qf7+ {[%clk 0:00:45]}  Kb8 {[%clk 0:00:10]} 34. Rd1 {[%clk 0:00:44]}  Qxa5 {[%clk 0:00:07]} 35. Qe8+ {[%clk 0:00:43]}  Kb7 {[%clk 0:00:07]} 36. Rd7+ {[%clk 0:00:43]} 1-0


[Site "https://www.chess.com"]

[Event "Titled Tuesday Blitz June 8 2021"]
[White "Enchev, Ivajlo"]
[Black "Obolentseva, Alexandra"]
[WhiteFideId "2907712"]
[BlackFideId "24153648"]
[WhiteElo "2452"]
[BlackElo "2113"]
[Result "0-1"]
[Round "05"]
[TimeControl "180+1"]
[Date "2021.06.08"]
[WhiteClock "0:00:08"]
[BlackClock "0:00:19"]

1. e4 {[%clk 0:03:00]}  c5 {[%clk 0:02:59]} 2. Nf3 {[%clk 0:03:00]}  d6 {[%clk 0:02:59]} 3. d4 {[%clk 0:02:59]}  cxd4 {[%clk 0:03:00]} 4. Nxd4 {[%clk 0:02:59]}  Nf6 {[%clk 0:03:01]} 5. Nc3 {[%clk 0:02:59]}  a6 {[%clk 0:03:01]} 6. a4 {[%clk 0:02:58]}  e6 {[%clk 0:02:59]} 7. g4 {[%clk 0:02:56]}  d5 {[%clk 0:02:52]} 8. e5 {[%clk 0:02:53]}  Nfd7 {[%clk 0:02:51]} 9. Bf4 {[%clk 0:02:39]}  Qb6 {[%clk 0:02:40]} 10. Nb3 {[%clk 0:02:36]}  Nc6 {[%clk 0:02:35]} 11. a5 {[%clk 0:02:25]}  Qc7 {[%clk 0:02:26]} 12. Qe2 {[%clk 0:02:23]}  Bb4 {[%clk 0:02:21]} 13. Bd2 {[%clk 0:02:09]}  Nxa5 {[%clk 0:02:01]} 14. Nxa5 {[%clk 0:02:07]}  Bxa5 {[%clk 0:02:02]} 15. f4 {[%clk 0:02:00]}  Bb6 {[%clk 0:01:45]} 16. O-O-O {[%clk 0:01:45]}  Nc5 {[%clk 0:01:43]} 17. f5 {[%clk 0:01:44]}  Bd7 {[%clk 0:01:39]} 18. Bg5 {[%clk 0:01:36]}  Na4 {[%clk 0:01:27]} 19. Nxa4 {[%clk 0:01:28]}  Bxa4 {[%clk 0:01:28]} 20. Kb1 {[%clk 0:01:27]}  Rc8 {[%clk 0:01:18]} 21. b3 {[%clk 0:01:22]}  Bb5 {[%clk 0:01:13]} 22. Qg2 {[%clk 0:01:16]}  Qc3 {[%clk 0:01:10]} 23. Bxb5+ {[%clk 0:01:05]}  axb5 {[%clk 0:01:11]} 24. Rd3 {[%clk 0:01:04]}  Qb4 {[%clk 0:01:09]} 25. Bd2 {[%clk 0:01:00]}  Qa3 {[%clk 0:01:03]} 26. Bc1 {[%clk 0:00:51]}  Qc5 {[%clk 0:00:59]} 27. Rf1 {[%clk 0:00:46]}  O-O {[%clk 0:00:50]} 28. f6 {[%clk 0:00:45]}  Ra8 {[%clk 0:00:45]} 29. Qd2 {[%clk 0:00:40]}  Rfc8 {[%clk 0:00:41]} 30. h4 {[%clk 0:00:21]}  Ba5 {[%clk 0:00:40]} 31. Qf2 {[%clk 0:00:15]}  Bc3 {[%clk 0:00:38]} 32. Rxc3 {[%clk 0:00:13]}  Qxc3 {[%clk 0:00:37]} 33. Bb2 {[%clk 0:00:14]}  Qc5 {[%clk 0:00:37]} 34. Qd2 {[%clk 0:00:13]}  d4 {[%clk 0:00:30]} 35. Rc1 {[%clk 0:00:13]}  Qxe5 {[%clk 0:00:28]} 36. Bxd4 {[%clk 0:00:12]}  Qd5 {[%clk 0:00:29]} 37. Qe3 {[%clk 0:00:12]}  Rd8 {[%clk 0:00:28]} 38. Bb2 {[%clk 0:00:11]}  Qd2 {[%clk 0:00:27]} 39. Qe4 {[%clk 0:00:11]}  Qh6 {[%clk 0:00:27]} 40. g5 {[%clk 0:00:10]}  Qg6 {[%clk 0:00:27]} 41. Qxb7 {[%clk 0:00:11]}  Rab8 {[%clk 0:00:24]} 42. Qc6 {[%clk 0:00:11]}  b4 {[%clk 0:00:22]} 43. fxg7 {[%clk 0:00:11]}  Rbc8 {[%clk 0:00:22]} 44. Qb5 {[%clk 0:00:11]}  Rd2 {[%clk 0:00:20]} 45. Qxb4 {[%clk 0:00:09]}  Rdxc2 {[%clk 0:00:21]} 46. Rxc2 {[%clk 0:00:09]}  Qxc2+ {[%clk 0:00:20]} 47. Ka2 {[%clk 0:00:09]}  Ra8+ {[%clk 0:00:19]} 48. Qa3 {[%clk 0:00:09]}  Rxa3+ {[%clk 0:00:20]} 49. Kxa3 {[%clk 0:00:10]}  Qc5+ {[%clk 0:00:20]} 50. Ka2 {[%clk 0:00:10]}  Qf2 {[%clk 0:00:20]} 51. Ka3 {[%clk 0:00:08]}  Qxh4 {[%clk 0:00:21]} 52. Bf6 {[%clk 0:00:08]}  h6 {[%clk 0:00:19]} 0-1


[Site "https://www.chess.com"]

[Event "Titled Tuesday Blitz June 8 2021"]
[White "Espinosa Veloz, Ermes"]
[Black "Salinas Herrera, Pablo"]
[WhiteFideId "3507424"]
[BlackFideId "3407128"]
[WhiteElo "2333"]
[BlackElo "2541"]
[Result "0-1"]
[Round "05"]
[TimeControl "180+1"]
[Date "2021.06.08"]
[WhiteClock "0:00:05"]
[BlackClock "0:00:20"]

1. e4 {[%clk 0:03:00]}  e5 {[%clk 0:02:58]} 2. Nf3 {[%clk 0:03:00]}  Nc6 {[%clk 0:02:57]} 3. d4 {[%clk 0:03:00]}  exd4 {[%clk 0:02:56]} 4. Bc4 {[%clk 0:03:00]}  Nf6 {[%clk 0:02:47]} 5. O-O {[%clk 0:03:00]}  Nxe4 {[%clk 0:02:44]} 6. Re1 {[%clk 0:03:00]}  d5 {[%clk 0:02:44]} 7. Bxd5 {[%clk 0:03:01]}  Qxd5 {[%clk 0:02:45]} 8. Nc3 {[%clk 0:03:01]}  Qd7 {[%clk 0:02:44]} 9. Rxe4+ {[%clk 0:02:58]}  Be7 {[%clk 0:02:41]} 10. Nxd4 {[%clk 0:02:57]}  f5 {[%clk 0:02:10]} 11. Rf4 {[%clk 0:02:51]}  O-O {[%clk 0:02:08]} 12. Nxc6 {[%clk 0:02:42]}  Qxc6 {[%clk 0:02:05]} 13. Qd5+ {[%clk 0:02:31]}  Qxd5 {[%clk 0:02:04]} 14. Nxd5 {[%clk 0:02:32]}  Bd6 {[%clk 0:02:05]} 15. Rd4 {[%clk 0:02:22]}  Be5 {[%clk 0:02:05]} 16. Rd1 {[%clk 0:02:17]}  f4 {[%clk 0:01:58]} 17. f3 {[%clk 0:01:38]}  Bd6 {[%clk 0:01:50]} 18. Bd2 {[%clk 0:01:35]}  Bf5 {[%clk 0:01:48]} 19. Bb4 {[%clk 0:01:13]}  c5 {[%clk 0:01:26]} 20. Bc3 {[%clk 0:00:59]}  Rad8 {[%clk 0:01:10]} 21. Rd2 {[%clk 0:00:53]}  Kf7 {[%clk 0:01:04]} 22. Rad1 {[%clk 0:00:52]}  Bb8 {[%clk 0:01:02]} 23. b3 {[%clk 0:00:32]}  Rfe8 {[%clk 0:00:27]} 24. Bb2 {[%clk 0:00:30]}  h6 {[%clk 0:00:27]} 25. c4 {[%clk 0:00:30]}  b6 {[%clk 0:00:27]} 26. Kf2 {[%clk 0:00:29]}  Rd6 {[%clk 0:00:26]} 27. Re1 {[%clk 0:00:22]}  Rxe1 {[%clk 0:00:24]} 28. Kxe1 {[%clk 0:00:23]}  Re6+ {[%clk 0:00:24]} 29. Kf2 {[%clk 0:00:23]}  Re8 {[%clk 0:00:24]} 30. Re2 {[%clk 0:00:22]}  Rxe2+ {[%clk 0:00:23]} 31. Kxe2 {[%clk 0:00:23]}  Bb1 {[%clk 0:00:23]} 32. Nc3 {[%clk 0:00:22]}  Bh7 {[%clk 0:00:23]} 33. Nd5 {[%clk 0:00:22]}  g5 {[%clk 0:00:23]} 34. Kd2 {[%clk 0:00:20]}  Ke6 {[%clk 0:00:22]} 35. Bg7 {[%clk 0:00:18]}  h5 {[%clk 0:00:22]} 36. Bf6 {[%clk 0:00:18]}  g4 {[%clk 0:00:20]} 37. Bg5 {[%clk 0:00:17]}  Kf5 {[%clk 0:00:21]} 38. Bh6 {[%clk 0:00:16]}  Bd6 {[%clk 0:00:20]} 39. Bg7 {[%clk 0:00:14]}  Bg8 {[%clk 0:00:21]} 40. Bc3 {[%clk 0:00:12]}  Bf7 {[%clk 0:00:21]} 41. Bb2 {[%clk 0:00:11]}  h4 {[%clk 0:00:21]} 42. h3 {[%clk 0:00:10]}  gxh3 {[%clk 0:00:21]} 43. gxh3 {[%clk 0:00:10]}  Bh5 {[%clk 0:00:22]} 44. Ke2 {[%clk 0:00:09]}  Bf7 {[%clk 0:00:22]} 45. Kf2 {[%clk 0:00:09]}  Be5 {[%clk 0:00:17]} 46. Bc1 {[%clk 0:00:08]}  Bd4+ {[%clk 0:00:16]} 47. Ke2 {[%clk 0:00:06]}  Be5 {[%clk 0:00:15]} 48. Kf2 {[%clk 0:00:05]}  Be6 {[%clk 0:00:15]} 49. Ke2 {[%clk 0:00:05]}  Bd7 {[%clk 0:00:14]} 50. Kf2 {[%clk 0:00:05]}  b5 {[%clk 0:00:15]} 51. Kg2 {[%clk 0:00:06]}  b4 {[%clk 0:00:12]} 52. Bd2 {[%clk 0:00:05]}  Be6 {[%clk 0:00:13]} 53. Be1 {[%clk 0:00:05]}  Bxd5 {[%clk 0:00:12]} 54. cxd5 {[%clk 0:00:06]}  Bf6 {[%clk 0:00:13]} 55. Bf2 {[%clk 0:00:05]}  Be7 {[%clk 0:00:13]} 56. d6 {[%clk 0:00:04]}  Bxd6 {[%clk 0:00:13]} 57. Bxh4 {[%clk 0:00:05]}  a5 {[%clk 0:00:13]} 58. Bf2 {[%clk 0:00:06]}  c4 {[%clk 0:00:12]} 59. bxc4 {[%clk 0:00:05]}  a4 {[%clk 0:00:13]} 60. Bd4 {[%clk 0:00:04]}  Be5 {[%clk 0:00:13]} 61. Bc5 {[%clk 0:00:03]}  b3 {[%clk 0:00:13]} 62. axb3 {[%clk 0:00:02]}  axb3 {[%clk 0:00:14]} 63. Ba3 {[%clk 0:00:03]}  b2 {[%clk 0:00:15]} 64. Bxb2 {[%clk 0:00:02]}  Bxb2 {[%clk 0:00:16]} 65. h4 {[%clk 0:00:02]}  Bd4 {[%clk 0:00:15]} 66. Kh3 {[%clk 0:00:03]}  Bc5 {[%clk 0:00:15]} 67. h5 {[%clk 0:00:02]}  Kg5 {[%clk 0:00:16]} 68. h6 {[%clk 0:00:03]}  Kxh6 {[%clk 0:00:16]} 69. Kg4 {[%clk 0:00:03]}  Be3 {[%clk 0:00:17]} 70. c5 {[%clk 0:00:04]}  Kg6 {[%clk 0:00:17]} 71. c6 {[%clk 0:00:03]}  Bb6 {[%clk 0:00:17]} 72. c7 {[%clk 0:00:04]}  Bxc7 {[%clk 0:00:17]} 73. Kh4 {[%clk 0:00:03]}  Kf5 {[%clk 0:00:17]} 74. Kh5 {[%clk 0:00:03]}  Ke5 {[%clk 0:00:18]} 75. Kg5 {[%clk 0:00:04]}  Kd4 {[%clk 0:00:19]} 76. Kf5 {[%clk 0:00:04]}  Ke3 {[%clk 0:00:19]} 77. Ke6 {[%clk 0:00:04]}  Kxf3 {[%clk 0:00:20]} 78. Kd7 {[%clk 0:00:05]}  Ba5 {[%clk 0:00:20]} 0-1


[Site "https://www.chess.com"]